Cogmind - Beta 14 *** ADVENTURER MODE // 2024.12.22 @ 18:22:01 Player: x1b Result: Destroyed by G-34 Mercenary with Small Laser Performance ------------- Evolutions (1) 500 Regions Visited (3) 600 Robots Destroyed (25) 125 Value Destroyed (713) 713 Prototype IDs (0) 0 Alien Tech Used (0) 0 Bonus (22) 22 TOTAL SCORE: 1960 Bonus ------- High Alert Combat Kills 22 Cogmind --------- Core Integrity 0/400 Matter 47/300 Energy 100/100 System Corruption 9% Temperature Cool (24) Movement Core (1450) Ox28 Location -9/Materials Parts ------- > --- POWER (1) -------- (None) > --- PROPULSION (3) --- (None) > --- UTILITY (2) ------ Small Storage Unit Huge Storage Unit > --- WEAPON (3) ------- (None) > --- INVENTORY (25) --- Small Matter Pod (0) Utility Shielding Hardened Light Armor Plating Peak State ------------ > --- POWER ------------ Light Ion Engine > --- PROPULSION ------- Wheel Wheel > --- UTILITY ---------- Large Storage Unit Sensor Array > --- WEAPON ----------- Particle Cannon Grenade Launcher Rocket Launcher > --- INVENTORY -------- Flight Unit Small Matter Pod Small Matter Pod Utility Shielding Hardened Light Armor Plating Assault Rifle Light Assault Rifle Mini Grenade Launcher [Rating: 11] Favorites ----------- Power Light Ion Engine Engine Light Ion Engine Propulsion Wheel Wheel Wheel Flight Unit Flight Unit Utility Huge Storage Unit Device Sensor Array Storage Huge Storage Unit Protection Utility Shielding Weapon Light Assault Rifle Energy Gun Small Laser Energy Cannon Particle Cannon Ballistic Gun Light Assault Rifle Ballistic Cannon Improved Light Cannon Launcher Grenade Launcher Build | -11 -10 -10 -9 ------- Run | Yrd Mat Min Mat Slots Evolved 2 | . . . 2 Power . | . . . . Propulsion 1 | . . . 1 Utility . | . . . . Weapon 1 | . . . 1 Parts Attached 33 | 5 3 7 18 Power 2 | 1 . 1 . Engine 2 | 1 . 1 . Core . | . . . . Reactor . | . . . . Propulsion 12 | 2 . 4 6 Treads . | . . . . Leg . | . . . . Wheel 7 | 2 . 2 3 Hover . | . . . . Flight 5 | . . 2 3 Utility 7 | . 2 . 5 Device 1 | . . . 1 Storage 5 | . 1 . 4 Processor . | . . . . Hackware . | . . . . Protection 1 | . 1 . . Artifact . | . . . . Weapon 12 | 2 1 2 7 Energy Gun 2 | 1 1 . . Energy Cannon 1 | . . . 1 Ballistic Gun 3 | 1 . . 2 Ballistic Cannon 2 | . . . 2 Launcher 4 | . . 2 2 Special Weapon . | . . . . Impact Weapon . | . . . . Slashing Weapon . | . . . . Piercing Weapon . | . . . . Special Melee Weapon . | . . . . Unidentified Prototypes . | . . . . Parts Lost 17 | . . 3 14 Power 1 | . . . 1 Propulsion 6 | . . 2 4 Utility 2 | . . 1 1 Weapon 8 | . . . 8 Highest Loss Streak 7 | . . 2 7 To Critical Strikes . | . . . . Average Slot Usage (%) 81 | . 92 84 78 Engine 11 | . 14 14 10 Wheel 17 | . 28 6 17 Flight 6 | . . 14 7 Device 1 | . . . 1 Storage 16 | . 9 7 19 Protection 3 | . 11 14 . Energy Gun 6 | . 27 17 . Ballistic Gun 7 | . . . 10 Ballistic Cannon 4 | . . . 5 Launcher 4 | . . 10 4 Peak Build Rating 11 | 5 7 7 11 Average Rating 7 | 3 6 6 8 On Entrance 4 | . 5 7 7 Naked Turns . | . . . . Heaviest Build 97 | 6 9 10 97 Greatest Support 20 | 20 20 20 20 Greatest Overweight (x) 31 | . . 2 31 Average Overweight (x) 2 | . . . 5 Largest Inventory Capacity 25 | 5 5 5 25 Average Capacity 17 | 5 5 5 22 Most Carried 8 | 3 4 5 8 Average Carried 3 | . 3 4 3 Final Capacity 25 | 5 5 5 25 Final Carried 4 | 2 4 4 3 Class Distribution -------------------- 66% | Mutant 23% | Gunner 8% | Skirmisher Dominant Class ---------------- Mutant | -10/Materials Mutant | -10/Mines Mutant | -9/Materials Resources | -11 -10 -10 -9 ----------- Run | Yrd Mat Min Mat Matter Collected 584 | 254 104 34 192 Remotely . | . . . . Salvage Created 692 | 67 104 96 425 Parts 44 | 2 2 8 32 Haulers Intercepted . | . . . . Recyclers Shooed 1 | . 1 . . Parts Field Recycled . | . . . . Retrieved Matter . | . . . . Parts Self-Destructed . | . . . . Prevented . | . . . . Kills | -11 -10 -10 -9 ------- Run | Yrd Mat Min Mat Combat Hostiles Destroyed 22 | 1 2 5 14 Guns 10 | 1 2 3 4 AOE 12 | . . 2 10 Classes Destroyed 8 | 2 . 1 5 Worker 1 | 1 . . . Builder 1 | . . . 1 Recycler 1 | . . . 1 Swarmer 6 | . . 3 3 Grunt 11 | 1 2 2 6 Brawler 1 | . . . 1 Duelist 1 | . . . 1 Sentry 3 | . . . 3 Best Kill Streak 7 | 1 2 3 7 Combat Bots Only 7 | 1 2 3 7 Max Kills in Single Turn 4 | 1 1 1 4 Gunslinging . | . . . . Exploded 4 | . . 1 4 Melee . | . . . . Uniques/NPCs Destroyed . | . . . . Combat | -11 -10 -10 -9 -------- Run | Yrd Mat Min Mat Hostile Shots Fired 214 | 7 7 19 181 Missed 62 | 1 1 6 54 Damage Taken 2195 | 50 64 217 1864 Core 447 | 17 . 25 405 Absorbed by Shields . | . . . . Redirected to Shielding 13 | . 3 10 . Ignored by Resistances 482 | 16 18 41 407 Core Remaining (%) 88 | 93 . 83 . Volleys Fired 40 | 8 6 8 18 Largest 3 | 2 2 2 3 Hottest 131 | 60 80 80 131 Shots Fired 89 | 12 12 16 49 Gun 62 | 12 12 12 26 Cannon 5 | . . . 5 Launcher 22 | . . 4 18 Special . | . . . . Kinetic 30 | 4 . . 26 Thermal 19 | . 6 8 5 Explosive 22 | . . 4 18 Electromagnetic 18 | 8 6 4 . Robot Hit Streak 13 | 6 11 8 13 Robot Miss Streak 2 | 1 2 1 1 Penetration Max . | . . . . Secondary Targets 2 | . 1 1 . Max Gunslinging Chain 1 | . 1 1 . Shots Hit Robots 66 | 8 10 10 38 Core Hits 50 | 3 5 11 31 Critical Kills . | . . . . Critical Parts Destroyed . | . . . . Critical Strikes 2 | 1 . 1 . Corrupt 2 | 1 . 1 . Melee Attacks . | . . . . Impact . | . . . . Slashing . | . . . . Piercing . | . . . . Sneak Attacks . | . . . . Combat Hostiles . | . . . . Follow-up Attacks . | . . . . Damage Inflicted 1690 | 103 116 257 1214 Guns 525 | 103 114 104 204 Cannons 103 | . . . 103 Explosions 1032 | . . 153 879 Melee . | . . . . Ramming 30 | . 2 . 28 Kinetic 213 | 9 . . 204 Thermal 255 | . 44 108 103 Explosive 995 | . . 116 879 Electromagnetic 197 | 94 70 33 . Impact . | . . . . Slashing . | . . . . Piercing . | . . . . Highest Corruption 9 | . . 2 9 Average Corruption 8 | . . 2 8 Corruption Purged . | . . . . Corruption Blocked . | . . . . Effects 46 | . . 2 44 Message Errors 9 | . . . 9 Matter Fused 11 | . . 1 10 Heat Flow Errors 1 | . . . 1 Energy Discharges 7 | . . 1 6 Parts Rejected 1 | . . . 1 Data Loss (minor) 4 | . . . 4 Data Loss (major) 6 | . . . 6 Misfires 1 | . . . 1 Alerts 3 | . . . 3 Weapon Failures 3 | . . . 3 Overload Shots . | . . . . Overflow Damage 23 | . . . 23 Projectiles . | . . . . Explosions 23 | . . . 23 Melee . | . . . . Knockbacks . | . . . . Impact . | . . . . Kinetic . | . . . . Secondary . | . . . . Self-Inflicted Damage 207 | . . 29 178 Shots 9 | . . 2 7 Rammed 7 | . 2 . 5 Targets Rammed 7 | . 2 . 5 Kicked . | . . . . Crushed . | . . . . Highest Temperature 242 | 44 84 75 242 Average Temperature 63 | 27 43 37 97 Received Heat Transfer 837 | 36 48 51 702 Siege Activations . | . . . . Robots Corrupted . | . . . . Combat Hostiles . | . . . . Parts Fried . | . . . . Impact Corruptions . | . . . . Robots Melted . | . . . . Combat Hostiles . | . . . . Parts Melted 1 | . . . 1 Heat Transferred 485 | . 100 200 185 Parts Sabotaged . | . . . . Parts Stolen . | . . . . Parts Stripped . | . . . . Power Chain Reactions 1 | . . 1 . Alert | -11 -10 -10 -9 ------- Run | Yrd Mat Min Mat Peak Influence 471 | 26 119 167 471 Initial 51 | . 14 39 51 Average 118 | 4 52 135 138 Maximum Alert Level 2 | . . . 2 Low Security (%) 74 | 100 100 100 64 Level 1 21 | . . . 30 Level 2 4 | . . . 5 Level 3 . | . . . . Level 4 . | . . . . Level 5 . | . . . . High Security . | . . . . Max Security . | . . . . Squads Dispatched 1 | . . . 1 Investigation . | . . . . Extermination . | . . . . Reinforcement 1 | . . . 1 Assault . | . . . . Garrison . | . . . . Intercept . | . . . . Searches Triggered . | . . . . Construction Impeded . | . . . . Haulers Reinforced . | . . . . Active Scanning Responses . | . . . . Cargo Convoy Interrupts . | . . . . Stealth | -11 -10 -10 -9 --------- Run | Yrd Mat Min Mat Distress Signals 1 | . . . 1 Communications Jammed . | . . . . Distress Signals . | . . . . Times Spotted 45 | 1 7 5 32 Peak Tracking Total 8 | 1 2 3 8 Tactical Retreats 1 | . 1 . . Traps | -11 -10 -10 -9 ------- Run | Yrd Mat Min Mat Traps Triggered . | . . . . Indirectly . | . . . . Trap Hack Attempts . | . . . . Triggered . | . . . . Disarmed . | . . . . Reprogrammed . | . . . . Reused . | . . . . Traps Extracted . | . . . . Installed . | . . . . Triggered . | . . . . Machines | -11 -10 -10 -9 ---------- Run | Yrd Mat Min Mat Machines Disabled 1 | . . . 1 Max in Single Turn 1 | . . . 1 Machines Repaired . | . . . . Machines Dismantled . | . . . . Machines Sabotaged . | . . . . Overloaded Fab Kills . | . . . . Hacking | -11 -10 -10 -9 --------- Run | Yrd Mat Min Mat Machines Accessed 4 | . 3 . 1 Terminals 3 | . 2 . 1 Fabricators . | . . . . Repair Stations . | . . . . Recycling Units 1 | . 1 . . Scanalyzers . | . . . . Garrison Access . | . . . . Total Hacks 10 | . 7 . 3 Successful 5 | . 4 . 1 Failed 5 | . 3 . 2 Catastrophic 1 | . 1 . . Database Lockouts . | . . . . Manual 1 | . 1 . . Terminals 9 | . 6 . 3 Fabricators . | . . . . Repair Stations . | . . . . Recycling Units 1 | . 1 . . Scanalyzers . | . . . . Garrison Access . | . . . . Terminal Hacks 4 | . 3 . 1 Record 2 | . 2 . . Investigation Status 1 | . . . 1 Hauler Manifests 1 | . 1 . . Fabricator Hacks . | . . . . Repair Station Hacks . | . . . . Recycling Unit Hacks 1 | . 1 . . Report Inventory 1 | . 1 . . Scanalyzer . | . . . . Garrison Access Hacks . | . . . . Unauthorized Hacks . | . . . . Terminals . | . . . . Fabricators . | . . . . Repair Stations . | . . . . Recycling Units . | . . . . Scanalyzers . | . . . . Garrison Access . | . . . . Data Cores Recovered . | . . . . Used . | . . . . Hacking Detections 3 | . 2 . 1 Full Trace Events 2 | . 1 . 1 Feedback Events . | . . . . Feedback Blocked . | . . . . Robot Schematics Acquired . | . . . . Robots Built . | . . . . Authchips . | . . . . Time . | . . . . Total Robot Build Rating . | . . . . Part Schematics Acquired . | . . . . Parts Built . | . . . . Authchips . | . . . . Time . | . . . . Total Part Build Rating . | . . . . Parts Repaired . | . . . . Time . | . . . . Parts Recycled . | . . . . Recycled Matter . | . . . . Retrieved Matter . | . . . . Retrieved Components . | . . . . Parts Scanalyzed . | . . . . Part Schematics Acquired . | . . . . Parts Damaged . | . . . . Bothacking | -11 -10 -10 -9 ------------ Run | Yrd Mat Min Mat Used RIF Installer . | . . . . Robots Hacked . | . . . . Non-combat . | . . . . Combat . | . . . . Robot Hacks Applied . | . . . . Relay Couplers Released . | . . . . Fabnet Peak Effective % . | . . . . Robots Rewired . | . . . . Allies Hacked . | . . . . Hacks Repelled . | . . . . Allies | -11 -10 -10 -9 -------- Run | Yrd Mat Min Mat Total Allies . | . . . . Largest Group . | . . . . Highest-Rated Group . | . . . . Highest-Rated Ally . | . . . . Total Orders . | . . . . Ally Attacks . | . . . . Total Damage . | . . . . Kills . | . . . . Allies Corrupted . | . . . . Allies Melted . | . . . . Intel | -11 -10 -10 -9 ------- Run | Yrd Mat Min Mat Robot Analysis Total . | . . . . Derelict Logs Recovered . | . . . . Drone Launches . | . . . . Drone Recoveries . | . . . . Exploration | -11 -10 -10 -9 ------------- Run | Yrd Mat Min Mat Turns Passed 2044 | 118 289 175 1462 Spaces Moved 1127 | 122 329 118 558 Core 37 | 34 . . 3 Treads . | . . . . Legs . | . . . . Wheels 945 | 88 329 28 500 Hover . | . . . . Flight 145 | . . 90 55 Fastest Speed 50 | 50 80 80 80 Average Speed 162 | 71 80 118 241 Slowest Speed 1730 | 80 80 205 1730 Overloaded Moves . | . . . . Propulsion Burnouts . | . . . . Robots Hopped . | . . . . Cave-ins Triggered 3 | . . 1 2 Exploration Rate (%) 21 | 7 33 10 36 Regions Visited 3 Branch Regions 1 Pre-discovered Areas . | . . . . Known Exits Taken . | . . . . Unknown Exits Taken 3 | 1 1 1 . Scrap Searched . | . . . . Spaces Dug . | . . . . Terrain Destroyed 150 | . . 41 109 Melee . | . . . . Projectile . | . . . . AOE 150 | . . 41 109 Terrain Rammed . | . . . . Walls Destroyed . | . . . . Machines Disabled . | . . . . Actions | -11 -10 -10 -9 --------- Run | Yrd Mat Min Mat Total 1224 | 140 341 135 608 Wait . | . . . . Move 1123 | 121 328 116 558 Hop . | . . . . Pick Up 15 | 6 2 1 6 Fast Attach 11 | 1 2 1 7 Attach 11 | 4 . 1 6 Detach . | . . . . Swap 11 | . 1 5 5 Drop 5 | . . 2 3 Fire 40 | 8 6 8 18 Melee . | . . . . Ram 7 | . 2 . 5 Kick . | . . . . Crush . | . . . . Escape Stasis 1 | . . 1 . Rewire . | . . . . Trap . | . . . . Miscellaneous . | . . . . Route ------- -11/Scrapyard -10/Materials -10/Mines -9/Materials History --------- Turn | Location | Event 2 | -11/Scrapyard | Met Revision 17 83 | -11/Scrapyard | Discovered new exit (range 8) 119 | -11/Scrapyard | Entered Materials 317 | -10/Materials | Build established: Mutant 404 | -10/Materials | Discovered new exit (range 6) 408 | -10/Materials | Entered Mines 421 | -10/Mines | Met a Derelict bent on vengeance 480 | -10/Mines | Discovered new exit (range 13) 497 | -10/Mines | Crushed by falling debris 555 | -10/Mines | Received a Rocket Launcher from a helpful Derelict 583 | -10/Mines | Entered Materials 583 | -9/Materials | Evolved 2 slots: Propulsion x1, Weapon x1 814 | -9/Materials | Crushed by falling debris 845 | -9/Materials | Lost 5 parts (1n1u3w) 919 | -9/Materials | Destroyed 7 combat bots 973 | -9/Materials | Crushed by falling debris 1946 | -9/Materials | Build established: Gunner 2031 | -9/Materials | Core integrity fell below 50% 2042 | -9/Materials | Core integrity fell below 20% 2045 | -9/Materials | Destroyed by G-34 Mercenary with Small Laser Last Messages --------------- Slammed into G-34 Mercenary. Destabilizing: System interference. Lgt. Assault Rifle temporarily disabled. Imp. Light Cannon temporarily disabled. Slammed into G-34 Mercenary. Want a larger map view with more modal windows? Or have a large enough display to fit a bigger map in exchange for smaller text? Consider selecting a different UI Layout in the option menu. Slammed into G-34 Mercenary. Wheel destroyed. Lgt. Assault Rifle destroyed. Critical hit (Burn: +37). Wheel destroyed. System corrupted: Energy discharge (-40). Imp. Light Cannon destroyed. N&PX W&KK0#NWHTTN9NKLRMV5UGJU2M0